bitfinex-derivatives/quotes_SOLF0:USTF0_20241227
["timestamp","ask_amount","ask_price","bid_price","bid_amount"]
[1735313209750,1.6529,184.87,184.74,32.89780168]
[1735313210052,2.7084,184.85,184.79,2.709]
[1735313210252,2.2961,184.88,184.78,4.36]
[1735313211348,2.7087,184.82,184.78,4.36]
[1735313211544,2.2961,184.88,184.78,4.36]
[1735313211852,32.89780168,184.86,184.72,4.36]
[1735313212756,2.2961,184.88,184.72,4.36]
[1735313213959,2.2961,184.88,184.74,32.89780168]
[1735313214159,2.7082,184.85,184.79,2.7091]
[1735313214452,2.7082,184.85,184.78,4.36]
[1735313214656,2.7079,184.88,184.8,2.7089]
[1735313214958,32.89780168,184.92,184.8,2.7089]
[1735313215157,32.89780168,184.92,184.78,4.36]
[1735313215353,7.5694,184.93,184.74,32.89780168]
[1735313215354,32.89780168,184.89,184.74,32.89780168]
[1735313215550,32.89780168,184.86,184.73,4.36]
[1735313215753,2.2139,184.85,184.73,4.36]
[1735313215954,32.89780168,184.82,184.73,4.36]
[1735313216260,2.7094,184.78,184.72,4.36]
[1735313217150,32.89780168,184.82,184.69,6.9566]
[1735313217355,32.89780168,184.79,184.69,6.9566]
[1735313218256,32.89780168,184.79,184.68,4.36]
[1735313218257,32.89780168,184.79,184.66,4.36]
[1735313218657,2.7103,184.71,184.66,4.36]
[1735313218860,32.89780168,184.76,184.66,4.36]
[1735313219061,2.7103,184.71,184.66,4.36]
[1735313219259,32.89780168,184.76,184.66,4.36]
[1735313219452,32.89780168,184.76,184.62,32.89780168]
[1735313219653,32.89780168,184.76,184.59,32.89780168]
[1735313219851,32.89780168,184.73,184.6,4.36]
[1735313220054,32.89780168,184.7,184.6,4.36]
[1735313220254,32.89780168,184.67,184.57,6.4089]
[1735313220463,32.89780168,184.67,184.46,22.37264706]
[1735313220652,32.89780168,184.67,184.48,32.89780168]
[1735313220857,2.7119,184.6,184.48,32.89780168]
[1735313221055,4.2725,184.72,184.54,32.89780168]
[1735313221261,2.7112,184.65,184.57,2.7122]
[1735313221465,32.89780168,184.68,184.58,4.36]
[1735313221856,2.7115,184.63,184.58,4.36]
[1735313222061,32.89780168,184.71,184.58,4.36]
[1735313222262,32.89780168,184.71,184.59,6.4277]
[1735313223065,2.7108,184.68,184.59,6.4277]
[1735313223265,32.89780168,184.71,184.59,6.4277]
[1735313223964,2.7114,184.64,184.59,6.4277]
[1735313224163,32.89780168,184.71,184.59,6.4277]
[1735313224358,2.7112,184.65,184.59,6.4277]
[1735313224555,32.89780168,184.71,184.59,6.4277]
[1735313225963,32.89780168,184.71,184.56,4.36]
[1735313226165,20.30878427,184.68,184.52,6.5377]
[1735313226363,20.30878427,184.68,184.55,2.7125]
[1735313226364,2.7116,184.62,184.55,2.7125]
[1735313226568,2.7116,184.62,184.53,4.36]
[1735313226569,20.30878427,184.71,184.53,4.36]
[1735313226866,2.7115,184.63,184.57,2.7122]
[1735313227067,20.30878427,184.68,184.53,4.36]
[1735313227367,20.30878427,184.68,184.52,6.5377]
[1735313227563,20.30878427,184.68,184.54,4.36]
[1735313228165,4.2725,184.72,184.48,20.30878427]
[1735313228166,20.30878427,184.65,184.48,20.30878427]
[1735313228563,2.7123,184.58,184.52,2.713]
[1735313229264,4.3673,184.63,184.51,2.7131]
[1735313229774,4.3673,184.63,184.49,4.36]
[1735313230069,2.7123,184.58,184.52,2.7131]
[1735313230376,2.7129,184.54,184.48,4.36]
[1735313230568,20.30878427,184.62,184.48,4.36]
[1735313230767,20.30878427,184.62,184.48,24.66878427]
[1735313230963,20.30878427,184.62,184.51,2.7132]
[1735313231162,20.30878427,184.62,184.48,24.66878427]
[1735313231771,4.3673,184.63,184.48,24.66878427]
[1735313231966,4.3673,184.63,184.49,0.99687149]
[1735313232166,4.3673,184.63,184.52,2.7131]
[1735313232472,4.3673,184.63,184.48,24.66878427]
[1735313232668,4.3673,184.63,184.49,0.99684199]
[1735313233066,20.30878427,184.68,184.51,20.30878427]
[1735313233274,4.3947,184.7,184.54,20.30878427]
[1735313233465,2.7105,184.7,184.65,2.7111]
[1735313233670,29.24150758,184.71,184.64,4.36]
[1735313233872,29.24150758,184.71,184.65,4.36]
[1735313234068,29.24150758,184.71,184.66,2.711]
[1735313234267,29.24150758,184.71,184.65,4.36]
[1735313234476,145.52121939,184.75,184.65,4.36]
[1735313234477,2.2779,184.76,184.65,4.36]
[1735313235265,20.30878427,184.74,184.65,4.36]
[1735313235466,24.66878427,184.74,184.59,4.36]
[1735313236375,2.7105,184.7,184.63,2.7114]
[1735313236677,20.30878427,184.74,184.63,2.7114]
[1735313236871,20.30878427,184.74,184.59,4.36]
[1735313236872,20.30878427,184.74,184.6,20.30878427]
[1735313237169,2.7103,184.71,184.65,2.7112]
[1735313237374,20.30878427,184.74,184.6,20.30878427]
[1735313238572,2.2779,184.76,184.6,20.30878427]
[1735313238971,2.7103,184.72,184.63,2.7113]
[1735313239165,2.2779,184.76,184.63,2.7113]
[1735313239479,20.30878427,184.74,184.6,20.30878427]
[1735313240366,2.2779,184.76,184.6,20.30878427]
[1735313240571,20.30878427,184.8,184.63,20.30878427]
[1735313240771,20.30878427,184.77,184.64,4.2951]
[1735313240972,20.30878427,184.77,184.65,2.7112]
[1735313241166,20.30878427,184.77,184.66,4.38]
[1735313243578,2.7101,184.72,184.66,7.091]
[1735313243979,2.71,184.74,184.68,2.7106]
[1735313244181,49.55029185,184.8,184.66,4.38]
[1735313244381,20.30878427,184.8,184.66,4.38]
[1735313244676,20.30878427,184.8,184.72,2.71]
[1735313244677,2.7092,184.79,184.72,2.71]
[1735313245281,2.7092,184.79,184.74,2.7098]
[1735313245580,7.31217367,184.84,184.72,4.38]
[1735313245783,7.31217367,184.84,184.73,8.7207]
[1735313246177,7.31217367,184.84,184.75,20.30878427]
[1735313246374,7.31217367,184.84,184.81,2.7087]
[1735313246574,7.31217367,184.84,184.75,20.30878427]
[1735313246575,7.31217367,184.84,184.8,4.38]
[1735313246778,7.31217367,184.9,184.8,4.38]
[1735313247078,7.31217367,184.9,184.81,20.30878427]
[1735313247278,7.31217367,184.9,184.8,4.38]
[1735313247877,7.31217367,184.9,184.86,2.7081]
[1735313248083,11.69217367,184.99,184.86,2.7081]
[1735313248274,2.1205,184.98,184.86,2.7081]
[1735313248471,22.42928427,184.98,184.86,7.0881]
[1735313248674,22.42928427,184.98,184.86,4.38]
[1735313248874,10.01847367,184.99,184.87,20.30878427]
[1735313249179,21.93652103,185.0,184.9,20.30878427]
[1735313249180,29.2486947,185.0,184.9,20.30878427]
[1735313249372,29.2486947,185.0,184.95,2.7067]
[1735313249581,29.2486947,185.0,184.95,4.36]
[1735313250282,2.2697,185.04,184.95,4.36]
[1735313250481,30.2839947,185.09,184.95,7.0667]
[1735313250684,30.2839947,185.09,184.95,4.36]
[1735313250885,2.1946,185.07,184.96,20.30878427]
[1735313251284,2.1946,185.07,184.95,4.36]
[1735313251678,4.8997,185.07,184.99,2.7062]
[1735313251878,2.7051,185.07,184.96,2.2518]
[1735313252282,2.2697,185.11,184.96,22.56058427]
[1735313252686,2.1007,185.12,184.96,22.56058427]
[1735313253079,2.7046,185.11,185.02,2.7057]
[1735313253279,2.1007,185.12,185.02,7.0657]
[1735313254384,2.1007,185.12,184.96,22.56058427]
[1735313254586,2.1007,185.12,184.97,4.36]
[1735313255489,2.7052,185.06,184.97,4.36]
[1735313255884,20.30878427,185.1,184.97,4.36]
[1735313256281,20.30878427,185.07,184.9,20.30878427]
[1735313256486,20.30878427,185.04,184.89,2.2229]
[1735313256686,20.30878427,185.04,184.9,4.36]
[1735313257388,20.30878427,185.01,184.88,4.3098]
[1735313259384,2.7063,184.99,184.91,2.7073]
[1735313259578,2.0897,185.02,184.91,4.36]
[1735313260186,2.7062,184.99,184.91,4.36]
[1735313260387,2.0897,185.02,184.91,4.36]
[1735313261389,2.7069,184.95,184.91,4.36]
[1735313261592,2.0897,185.02,184.91,4.36]
[1735313262594,2.7063,184.98,184.91,7.0673]
[1735313262788,2.0897,185.02,184.91,4.36]
[1735313263183,2.7066,184.96,184.91,4.36]
[1735313263389,2.0897,185.02,184.91,4.36]
[1735313263684,20.30878427,185.01,184.84,20.30878427]
[1735313263888,20.30878427,184.98,184.82,4.36]
[1735313264088,24.66878427,184.98,184.82,4.36]
[1735313264282,20.30878427,184.95,184.82,4.36]
[1735313264697,2.7078,184.89,184.82,4.36]
[1735313264901,24.66878427,184.98,184.82,4.36]
[1735313265403,2.7072,184.93,184.86,2.7081]
[1735313265599,24.66878427,184.98,184.82,4.36]
[1735313266004,24.66878427,184.98,184.84,2.7083]
[1735313266198,24.66878427,184.98,184.82,4.36]
[1735313266502,24.66878427,184.98,184.85,2.7082]
[1735313267000,24.66878427,184.98,184.87,2.7079]
[1735313267395,4.36,184.98,184.84,20.30878427]
[1735313267702,2.7069,184.94,184.87,2.7079]
[1735313267903,4.36,184.98,184.87,4.36]
[1735313268100,20.30878427,185.01,184.87,4.36]
[1735313268301,2.7075,184.9,184.87,4.36]
[1735313269198,2.7075,184.9,184.81,20.30878427]
[1735313269199,2.7073,184.92,184.86,2.708]
[1735313269507,20.30878427,184.98,184.84,4.32]
[1735313269702,2.7078,184.88,184.82,2.7087]
[1735313269903,2.7078,184.88,184.82,7.0287]
[1735313271802,2.0434,184.95,184.82,7.0287]
[1735313272000,2.708,184.87,184.82,7.0287]
[1735313272601,2.7078,184.88,184.82,7.0287]
[1735313272796,2.7078,184.88,184.82,4.32]
[1735313272996,2.0434,184.95,184.82,4.32]
[1735313273201,2.0434,184.95,184.84,20.30878427]
[1735313273397,7.31217367,185.0,184.86,2.7079]
[1735313273599,9.47197367,185.0,184.86,2.7079]
[1735313273900,2.7072,184.92,184.86,2.7079]
[1735313274496,2.7075,184.9,184.84,23.01698427]
[1735313274701,20.30878427,184.98,184.82,4.32]
[1735313275101,2.7072,184.92,184.82,4.32]
[1735313275297,20.30878427,184.98,184.82,4.32]
[1735313275904,20.30878427,184.95,184.82,4.32]
[1735313276512,2.7079,184.88,184.82,7.0285]
[1735313277410,20.30878427,184.95,184.82,7.0285]
[1735313277704,20.30878427,184.95,184.84,2.7084]
[1735313278203,20.30878427,184.95,184.82,4.32]
[1735313278204,20.30878427,184.95,184.82,7.0286]
[1735313278408,20.30878427,184.95,184.82,4.32]
[1735313278798,20.30878427,184.95,184.84,2.7082]
[1735313279106,2.7076,184.9,184.82,4.32]
[1735313280007,7.31217367,184.96,184.82,4.32]
[1735313280206,2.7078,184.88,184.83,2.7084]
[1735313280509,29.2486947,184.96,184.82,4.32]
[1735313280704,29.2486947,184.96,184.83,2.7085]
[1735313280909,29.2486947,184.96,184.82,4.32]
[1735313281108,7.31217367,184.93,184.82,4.32]
[1735313281609,7.31217367,184.93,184.82,7.0285]
[1735313282001,2.7079,184.88,184.82,7.0285]
[1735313282310,20.30878427,184.89,184.72,76.56878427]
[1735313282507,2.7089,184.81,184.73,11.48207359]
[1735313282708,4.2688,184.88,184.75,2.7096]
[1735313282906,4.2688,184.88,184.73,6.1666]
[1735313282907,20.30878427,184.86,184.73,6.1666]
[1735313283108,20.30878427,184.86,184.73,4.0928]
[1735313283303,20.30878427,184.83,184.64,2.0738]
[1735313283510,2.7092,184.79,184.67,4.32]
[1735313283705,0.884,184.87,184.77,2.7093]
[1735313283912,11.58097367,184.88,184.75,4.32]
[1735313284113,11.58097367,184.88,184.74,20.30878427]
[1735313284114,2.7082,184.86,184.76,6.3851]
[1735313284407,11.58097367,184.88,184.76,6.3851]
[1735313284613,29.2486947,184.84,184.76,6.3851]
[1735313284807,29.2486947,184.84,184.78,2.7091]
[1735313285013,29.2486947,184.84,184.77,20.30878427]
[1735313285508,29.2486947,184.89,184.83,2.7085]
[1735313285713,29.2486947,184.89,184.83,7.0285]
[1735313285912,31.9563947,184.89,184.83,4.32]
[1735313286110,22.5618947,184.89,184.83,24.62878427]
[1735313286319,7.34001131,184.93,184.86,20.30878427]
[1735313286612,7.34001131,184.93,184.83,24.62878427]
[1735313286815,2.0861,184.92,184.83,4.32]
[1735313287011,2.7078,184.89,184.83,4.32]
[1735313287415,2.0861,184.92,184.83,4.32]
[1735313288706,2.0861,184.92,184.74,20.30878427]
[1735313288905,20.30878427,184.9,184.77,4.32]
[1735313289208,2.0861,184.92,184.77,4.32]
[1735313289411,2.0861,184.92,184.77,24.62878427]
[1735313289913,2.0861,184.92,184.8,20.30878427]
[1735313290219,2.0861,184.92,184.83,20.30878427]
[1735313290415,2.0861,184.92,184.84,4.32]
[1735313290615,58.49738943,184.94,184.92,2.7072]
[1735313290913,58.49738943,184.94,184.9,4.32]
[1735313291115,2.7066,184.96,184.9,4.32]
[1735313291416,2.0888,184.98,184.9,4.32]
[1735313293014,2.7066,184.97,184.9,7.0275]
[1735313293316,2.0888,184.98,184.9,7.0275]
[1735313294511,2.7067,184.96,184.9,7.0275]
[1735313295016,2.0888,184.98,184.91,2.7073]
[1735313295017,4.7953,184.98,184.91,2.7073]
[1735313295417,2.0888,184.98,184.91,2.7073]
[1735313295715,4.7951,184.98,184.9,4.32]
[1735313295907,2.0888,184.98,184.9,4.32]
[1735313296309,61.20318943,185.02,184.9,4.32]
[1735313296517,58.49738943,185.02,184.9,4.32]
[1735313296821,2.7069,184.95,184.9,4.32]
[1735313297419,20.30878427,185.02,184.88,2.7078]
[1735313297621,20.30878427,184.99,184.83,20.30878427]
[1735313297816,2.7077,184.89,184.83,4.32]
[1735313298018,20.30878427,184.96,184.83,4.32]
[1735313298320,20.30878427,184.93,184.79,2.1774]
[1735313298516,20.30878427,184.9,184.8,4.26]
[1735313299113,2.7079,184.87,184.8,4.26]
[1735313299316,2.2187,184.92,184.8,4.26]
[1735313300616,2.2187,184.92,184.8,24.56878427]
[1735313300825,2.2187,184.92,184.83,20.30878427]
[1735313301121,4.3196,184.95,184.83,20.30878427]
[1735313301316,58.49738943,184.97,184.86,20.30878427]
[1735313301624,58.49738943,184.97,184.89,20.30878427]
[1735313301923,61.20308943,185.03,184.96,2.7066]
[1735313302223,58.49738943,185.03,184.96,4.26]
[1735313302821,58.49738943,185.03,184.97,2.7063]
[1735313303022,58.49738943,185.03,184.96,4.26]
[1735313303424,2.7056,185.04,184.96,4.26]
[1735313304219,4.2487,185.07,184.96,4.26]
[1735313306015,2.7055,185.04,184.98,2.7063]
[1735313306215,4.2487,185.07,184.96,4.26]
[1735313307229,2.7057,185.03,184.96,4.26]
[1735313307430,4.2487,185.07,184.96,4.26]
[1735313308118,20.30878427,185.06,184.91,22.34728427]
[1735313308323,20.30878427,185.06,184.9,2.0472]
[1735313308625,20.30878427,185.0,184.88,4.26]
[1735313309022,2.2101,184.99,184.88,4.26]
[1735313309529,20.30878427,184.97,184.88,4.26]
[1735313310333,2.7069,184.94,184.88,6.9677]
[1735313311130,2.7069,184.94,184.88,4.26]
[1735313311832,20.30878427,184.97,184.88,4.26]
[1735313312033,20.30878427,184.97,184.83,4.26]
[1735313313031,20.30878427,184.97,184.88,2.7078]
[1735313313032,2.7068,184.95,184.88,2.7078]
[1735313313232,2.7068,184.95,184.83,24.56878427]
[1735313313731,2.7069,184.94,184.88,2.7078]
[1735313314232,2.7072,184.92,184.86,2.7079]
[1735313314529,20.30878427,184.97,184.83,4.26]
[1735313314727,2.707,184.94,184.87,2.7078]
[1735313315028,4.2524,184.98,184.83,24.56878427]
[1735313315225,2.7066,184.97,184.9,2.7074]
[1735313315431,4.2524,184.98,184.9,2.7074]
[1735313316427,2.7066,184.96,184.9,2.7074]
[1735313320031,4.2524,184.98,184.89,4.26]
[1735313320338,4.2524,184.98,184.89,24.56878427]
[1735313321034,4.2524,184.98,184.9,4.26]
[1735313321636,22.04517906,185.04,184.92,20.30878427]
[1735313321832,22.04517906,185.03,184.92,20.30878427]
[1735313322036,22.04517906,185.03,185.01,2.7059]
[1735313322436,22.04517906,185.03,184.99,4.26]
[1735313322632,24.75077906,185.03,184.99,4.26]
[1735313322938,2.1008,185.04,184.99,4.26]
[1735313323237,4.8064,185.04,184.99,4.26]
[1735313323634,2.1008,185.04,184.99,4.26]
[1735313324729,2.0217,185.07,184.99,4.26]
[1735313325737,2.1554,185.09,184.99,4.26]
[1735313326335,4.8602,185.09,185.03,2.7055]
[1735313326535,4.8602,185.09,184.99,4.26]
[1735313326734,2.1554,185.09,184.99,4.26]
[1735313327038,4.0643,185.12,184.99,4.26]
[1735313327238,4.0643,185.12,185.0,2.188]
[1735313328542,2.7047,185.09,185.04,2.7053]
[1735313328741,4.0643,185.12,185.05,4.14]
[1735313329446,2.7045,185.11,185.05,4.14]
[1735313330038,4.8093,185.14,185.08,2.7048]
[1735313330639,4.8093,185.14,185.1,2.7045]
[1735313330640,2.1052,185.14,185.1,2.7045]
[1735313331145,2.1052,185.14,185.05,4.14]
[1735313331338,2.1052,185.14,185.09,2.7047]
[1735313331946,2.1052,185.14,185.07,2.7049]
[1735313332147,2.1052,185.14,185.05,4.14]
[1735313333439,2.1052,185.14,185.06,4.14]
[1735313333637,20.30878427,185.13,185.06,4.14]
[1735313334037,20.30878427,185.13,185.0,2.188]
[1735313334344,20.30878427,185.13,185.01,4.14]
[1735313334642,20.30878427,185.1,184.96,4.096]
[1735313334845,2.1442,185.09,184.97,4.14]
[1735313335247,2.1466,185.08,184.97,4.14]
[1735313336048,2.1466,185.08,184.98,4.14]
[1735313336250,20.30878427,185.07,184.98,4.14]
[1735313337150,2.7061,185.02,184.98,4.14]
[1735313337541,20.30878427,185.07,184.96,2.7067]
[1735313337849,20.30878427,185.07,184.96,4.14]
[1735313338251,2.7063,185.0,184.95,6.8469]
[1735313338442,20.30878427,185.04,184.94,4.14]
[1735313338646,2.1406,185.03,184.94,4.14]
[1735313339149,58.49738943,185.13,184.94,4.14]
[1735313339449,2.1406,185.08,184.94,4.14]
[1735313339645,2.7058,185.04,184.98,2.7066]
[1735313339851,22.44938427,185.08,184.94,4.14]
[1735313340351,2.7054,185.07,184.94,4.14]
[1735313340852,2.1406,185.08,185.0,2.7062]
[1735313341042,2.1406,185.08,185.0,6.8462]
[1735313341551,2.7059,185.03,184.97,2.7067]
[1735313341752,20.30878427,185.06,184.96,4.14]
[1735313341951,20.30878427,185.06,184.95,4.14]
[1735313342345,2.7062,185.01,184.95,4.14]
[1735313342550,20.30878427,185.06,184.95,4.14]
[1735313342941,20.30878427,185.06,184.95,6.8469]
[1735313343146,2.1406,185.08,184.95,4.14]
[1735313343348,2.706,185.02,184.97,2.7066]
[1735313343851,20.30878427,185.06,184.97,4.14]
[1735313344654,2.7063,185.0,184.97,4.14]
[1735313345656,2.7063,185.0,184.95,2.707]
[1735313346351,2.7063,185.0,184.94,4.14]
[1735313347352,2.7063,185.0,184.94,6.8471]
[1735313347547,2.7066,184.98,184.94,4.14]
[1735313347754,2.2082,184.99,184.94,4.14]
[1735313347956,2.2082,184.99,184.91,2.7076]
[1735313348151,2.7068,184.97,184.91,4.14]
[1735313348351,2.2082,184.99,184.91,4.14]
[1735313348554,2.2082,184.99,184.95,2.7069]
[1735313348757,2.2082,184.99,184.91,4.14]
[1735313349054,2.2082,184.99,184.93,2.7073]
[1735313349255,2.7067,184.98,184.93,2.7073]
[1735313350150,2.2082,184.99,184.92,2.7075]
[1735313350151,2.7068,184.97,184.92,2.7075]
[1735313350354,2.2082,184.99,184.91,4.14]
[1735313351157,2.2082,184.99,184.93,2.7073]
[1735313351358,2.2082,184.99,184.91,4.14]
[1735313351857,2.7067,184.97,184.91,4.14]
[1735313352059,2.2082,184.99,184.91,4.14]
[1735313352257,2.2082,184.99,184.94,2.707]
[1735313352759,20.30878427,185.05,184.91,4.14]
[1735313352960,4.3199,185.04,184.91,4.14]
[1735313353260,4.3199,185.04,184.92,20.30878427]
[1735313353455,31.59500129,185.09,184.95,20.30878427]
[1735313353657,31.59500129,185.09,185.05,2.7056]
[1735313353848,29.38820129,185.09,185.04,4.14]
[1735313354255,22.42188427,185.11,185.04,4.14]
[1735313354453,20.30878427,185.08,184.96,2.1872]
[1735313354651,22.42188427,185.11,184.96,4.14]
[1735313354861,20.30878427,185.02,184.93,4.14]
[1735313355057,20.30878427,184.99,184.9,4.14]
[1735313355354,20.30878427,184.99,184.86,4.2904]
[1735313355558,6.4424,185.01,184.87,4.14]
[1735313355559,2.7076,184.91,184.87,4.14]
[1735313355763,20.30878427,184.96,184.87,4.14]
[1735313356059,2.7076,184.91,184.87,4.14]
[1735313356459,20.30878427,184.96,184.87,4.14]
[1735313357055,2.7065,184.99,184.92,2.7073]
[1735313357358,35.83060129,185.01,184.93,4.08]
[1735313357561,2.7066,184.98,184.93,4.08]
[1735313357860,6.4424,185.01,184.93,4.08]
[1735313358661,9.1487,185.01,184.93,6.7873]
[1735313359061,6.4424,185.01,184.93,4.08]
[1735313359257,20.30878427,184.99,184.83,20.30878427]
[1735313359563,20.30878427,184.96,184.84,4.08]
[1735313359757,20.30878427,184.93,184.84,4.08]
[1735313359956,20.30878427,184.93,184.78,3.9881]
[1735313359957,6.3096,184.92,184.78,3.9881]
[1735313360156,6.3096,184.92,184.79,4.08]
[1735313360368,20.30878427,184.9,184.8,4.08]
[1735313360557,20.30878427,184.9,184.77,56.26]
[1735313360755,20.30878427,184.87,184.77,56.26]
[1735313360956,20.30878427,184.87,184.78,4.08]
[1735313361155,20.30878427,184.9,184.78,4.08]
[1735313363167,20.30878427,184.9,184.75,2.0572]
[1735313363371,20.30878427,184.87,184.76,4.08]
[1735313363668,10.3896,184.92,184.71,3.9862]
[1735313363669,20.30878427,184.84,184.71,3.9862]
[1735313363864,2.0479,184.83,184.68,20.30878427]
[1735313364059,6.2731,184.83,184.67,2.1034]
[1735313364269,20.30878427,184.81,184.68,6.7909]
[1735313364659,20.30878427,184.81,184.68,2.7109]
[1735313364864,2.7098,184.76,184.69,4.08]
[1735313365562,2.71,184.75,184.69,4.08]
[1735313365765,20.30878427,184.81,184.69,4.08]
[1735313365965,6.2731,184.83,184.69,4.08]
[1735313366165,2.7097,184.77,184.69,4.08]
[1735313367069,20.30878427,184.82,184.69,4.08]
[1735313367568,20.30878427,184.79,184.69,4.08]
[1735313367870,20.30878427,184.79,184.68,4.08]
[1735313368667,2.7099,184.76,184.67,4.08]
[1735313368864,20.30878427,184.79,184.67,4.08]
[1735313369270,2.7098,184.77,184.67,4.08]
[1735313369470,20.30878427,184.82,184.67,4.08]
[1735313369666,20.30878427,184.76,184.67,4.08]
[1735313369871,2.7107,184.7,184.67,4.08]
[1735313371078,2.7105,184.72,184.67,4.08]
[1735313371577,2.0592,184.74,184.67,4.08]
[1735313371778,2.7104,184.73,184.67,4.08]
[1735313371970,20.30878427,184.82,184.67,4.08]
[1735313372168,24.46158427,184.82,184.67,4.08]
[1735313372571,2.7095,184.79,184.72,2.7104]
[1735313372874,2.7095,184.79,184.73,4.08]
[1735313373477,4.1528,184.82,184.73,4.08]
[1735313373679,2.7091,184.81,184.73,4.08]
[1735313373878,4.1528,184.82,184.73,4.08]
[1735313374077,2.7096,184.78,184.73,4.08]
[1735313374579,24.46158427,184.82,184.54,92.87512792]
[1735313374784,20.30878427,184.78,184.65,4.08]
[1735313375284,2.7101,184.75,184.65,6.7914]
[1735313375584,20.30878427,184.78,184.65,4.08]
[1735313375781,2.7102,184.74,184.66,5.35375339]
[1735313375978,2.7102,184.74,184.66,2.64255339]
[1735313376177,20.30878427,184.78,184.66,2.64255339]
[1735313377381,2.71,184.75,184.66,2.64255339]
[1735313377581,20.30878427,184.78,184.66,2.64255339]
[1735313377782,2.7101,184.74,184.68,2.711]
[1735313379377,2.71,184.75,184.69,2.7107]
[1735313379985,20.30878427,184.78,184.66,2.64255339]
[1735313380179,20.30878427,184.78,184.67,2.7111]
[1735313380180,2.7103,184.73,184.67,2.7111]
[1735313380585,2.7103,184.73,184.66,2.64255339]
[1735313380780,20.30878427,184.78,184.66,2.64255339]
[1735313380985,2.7101,184.75,184.7,2.7106]
[1735313381187,2.7101,184.75,184.71,4.08]
[1735313381882,2.7098,184.76,184.71,4.08]
[1735313382391,20.30878427,184.78,184.71,4.08]
[1735313383084,2.7098,184.76,184.71,4.08]
[1735313383286,20.30878427,184.78,184.71,4.08]
[1735313383886,20.30878427,184.81,184.71,4.08]
[1735313384087,20.30878427,184.81,184.71,6.7905]
[1735313385289,2.7098,184.77,184.71,4.08]
[1735313385681,2.7095,184.78,184.71,6.7904]
[1735313385884,20.30878427,184.81,184.71,4.08]
[1735313386391,2.7099,184.76,184.71,4.08]
[1735313386789,20.30878427,184.81,184.71,4.08]
[1735313386990,2.7101,184.74,184.71,4.08]
[1735313387191,20.30878427,184.81,184.71,4.08]
[1735313387382,20.30878427,184.81,184.66,2.64255339]
[1735313387582,20.30878427,184.78,184.68,4.08]
[1735313388093,20.30878427,184.78,184.66,2.64255339]
[1735313388390,20.30878427,184.75,184.66,2.64255339]
[1735313388590,2.7105,184.72,184.66,2.64255339]
[1735313388792,4.2083,184.74,184.66,2.64255339]
[1735313389191,4.2083,184.74,184.66,6.72255339]
[1735313389491,2.711,184.69,184.66,6.72255339]
[1735313390492,20.30878427,184.78,184.66,6.72255339]
[1735313391391,2.7101,184.75,184.66,6.72255339]
[1735313391581,20.30878427,184.78,184.66,6.72255339]
[1735313392194,20.30878427,184.75,184.66,6.72255339]
[1735313392890,20.30878427,184.78,184.66,6.72255339]
[1735313393393,20.30878427,184.78,184.66,9.43385339]
[1735313393991,20.30878427,184.78,184.66,6.72255339]
[1735313394390,20.30878427,184.75,184.66,2.64255339]
[1735313394585,20.30878427,184.71,184.58,4.08]
[1735313394792,6.3017,184.7,184.58,4.08]
[1735313394994,2.7112,184.67,184.59,2.7123]
[1735313395194,6.3017,184.7,184.59,2.7123]
[1735313395596,2.7118,184.63,184.58,4.08]
[1735313395896,20.30878427,184.68,184.58,4.08]
[1735313396191,2.7114,184.65,184.58,6.7924]
[1735313396389,20.30878427,184.68,184.58,2.7124]
[1735313396593,20.30878427,184.65,184.53,4.08]
[1735313397194,20.30878427,184.65,184.47,20.30878427]